[Event "Moscow-ch Women 2021"]
[Site "Moscow"]
[Date "2021.03.27"]
[Round "3.2"]
[White "Zherebtsova, Alexandra"]
[Black "Zvereva, Margarita"]
[Result "1/2-1/2"]
[ECO "E06"]
[WhiteElo "2177"]
[BlackElo "1951"]
[Annotator "NA"]
[PlyCount "186"]
[EventDate "2021.03.25"]
[EventType "swiss"]
[EventCountry "RUS"]
[SourceTitle "playchess.com"]
[Source "ChessBase"]
[SourceQuality "1"]
[TimeControl "5400+30"]

1. d4 {[%emt 0:01:46]} d5 {[%emt 0:00:00]} 2. Nf3 {[%emt 0:00:05]} Nf6 {[%emt 0:00:00]} 3. g3 {[%emt 0:00:17]} e6 {[%emt 0:00:46]} 4. Bg2 {[%emt 0:00:17]} Be7 {[%emt 0:00:09]} 5. O-O {[%emt 0:00:45]} O-O {[%emt 0:00:09]} 6. c4 {[%emt 0:01:00]} c6 {[%emt 0:00:07]} 7. Nc3 {[%emt 0:00:44]} b6 {[%emt 0:00:39]} 8. Qd3 {[%emt 0:00:48]} Ba6 {[%emt 0:02:02]} 9. b3 {[%emt 0:02:53]} Nbd7 {[%emt 0:00:16]} 10. Rd1 {[%emt 0:17:24]} Qc7 {[%emt 0:04:49]} 11. e4 {[%emt 0:20:00]} dxc4 {[%emt 0:05:10]} 12. Qc2 {[%emt 0:02:44]} cxb3 $11 {[%emt 0:15:18]} 13. axb3 {[%emt 0:01:17]} Qc8 {[%emt 0:00:29]} 14. Ba3 {[%emt 0:12:30]} Bxa3 {[%emt 0:01:21]} 15. Rxa3 {[%emt 0:00:03]} Bb7 {[%emt 0:01:07]} 16. e5 {[%emt 0:02:09]} Nd5 {[%emt 0:02:51]} 17. Ng5 {[%emt 0:02:54]} g6 {[%emt 0:00:47]} 18. Nce4 {[%emt 0:03:28]} Qd8 {[%emt 0:19:18]} 19. Qd2 {[%emt 0:08:23]} c5 {[%emt 0:08:45]} 20. Nd6 {[%emt 0:01:12]} Bc6 {[%emt 0:00:32]} 21. h4 {[%emt 0:02:14]} Qe7 {[%emt 0:07:10]} 22. Nge4 {[%emt 0:03:18]} f6 {[%emt 0:04:03]} 23. exf6 {[%emt 0:03:11]} N7xf6 {[%emt 0:00:20]} 24. dxc5 {[%emt 0:00:27]} Nxe4 {[%emt 0:02:30]} 25. Nxe4 {[%emt 0:00:06]} bxc5 {[%emt 0:00:16]} 26. Qg5 {[%emt 0:04:06]} Qg7 {[%emt 0:05:45]} 27. Qg4 {[%emt 0:05:56]} Rae8 {[%emt 0:05:56]} 28. Ra6 {[%emt 0:01:38]} Nb4 {[%emt 0:02:23]} 29. Ra5 {[%emt 0:01:03]} Bxe4 {[%emt 0:07:20]} 30. Qxe4 {[%emt 0:00:32]} Nd5 {[%emt 0:01:33]} 31. Qc2 {[%emt 0:01:01]} Qc3 {[%emt 0:01:35]} 32. Rxc5 {[%emt 0:01:06]} Qxc2 {[%emt 0:00:25]} 33. Rxc2 {[%emt 0:00:03]} Rb8 {[%emt 0:01:14]} 34. Bxd5 {[%emt 0:00:40]} exd5 {[%emt 0:00:04]} 35. Rxd5 {[%emt 0:00:05]} Rxb3 {[%emt 0:01:30]} 36. Rd7 {[%emt 0:00:18]} Rf7 {[%emt 0:00:22]} 37. Rxf7 {[%emt 0:00:20]} Kxf7 {[%emt 0:00:04]} 38. Rc7+ {[%emt 0:00:04]} Kg8 {[%emt 0:00:20]} 39. Rxa7 {[%emt 0:00:13]} Rb5 {[%emt 0:01:22]} 40. Kg2 {[%emt 0:00:15]} Rf5 {[%emt 0:00:18]} 41. g4 {[%emt 0:01:00]} Rb5 {[%emt 0:00:24]} 42. Kg3 {[%emt 0:00:22]} h5 {[%emt 0:00:53]} 43. g5 {[%emt 0:00:09]} Rf5 {[%emt 0:00:19]} 44. Re7 {[%emt 0:01:09]} Ra5 {[%emt 0:00:26]} 45. Re4 {[%emt 0:00:58]} Kg7 {[%emt 0:00:24]} 46. Rf4 {[%emt 0:00:53]} Ra3+ {[%emt 0:00:25]} 47. f3 {[%emt 0:00:21]} Ra2 {[%emt 0:00:20]} 48. Re4 {[%emt 0:00:43]} Ra3 {[%emt 0:00:54]} 49. Kf4 {[%emt 0:00:22]} Ra5 {[%emt 0:00:24]} 50. Re7+ {[%emt 0:00:15]} Kf8 {[%emt 0:00:29]} 51. Re6 {[%emt 0:00:32]} Kf7 {[%emt 0:00:49]} 52. Re5 {[%emt 0:00:29]} Ra4+ {[%emt 0:00:11]} 53. Re4 {[%emt 0:00:16]} Ra5 {[%emt 0:00:18]} 54. Rb4 {[%emt 0:00:42]} Kg7 {[%emt 0:00:40]} 55. Rd4 {[%emt 0:00:41]} Kf7 {[%emt 0:00:23]} 56. Ke4 {[%emt 0:00:28]} Ke6 {[%emt 0:00:48]} 57. Rb4 {[%emt 0:00:55]} Kf7 {[%emt 0:00:22]} 58. Rb7+ {[%emt 0:00:20]} Kf8 {[%emt 0:00:38]} 59. Rd7 {[%emt 0:00:27]} Ra4+ {[%emt 0:00:32]} 60. Rd4 {[%emt 0:00:45]} Ra5 {[%emt 0:00:16]} 61. f4 {[%emt 0:00:28]} Ke7 {[%emt 0:00:42]} 62. Rc4 {[%emt 0:00:47]} Rb5 {[%emt 0:00:28]} 63. Rc7+ {[%emt 0:00:16]} Kf8 {[%emt 0:00:08]} 64. Rd7 {[%emt 0:00:19]} Rb4+ {[%emt 0:00:46]} 65. Rd4 {[%emt 0:00:02]} Rb5 {[%emt 0:00:32]} 66. Rd5 {[%emt 0:00:15]} Rb4+ {[%emt 0:00:28]} 67. Ke5 {[%emt 0:00:10]} Kf7 {[%emt 0:00:38]} 68. Rd7+ {[%emt 0:00:23]} Kg8 {[%emt 0:00:43]} 69. f5 {[%emt 0:02:06]} gxf5 {[%emt 0:00:31]} 70. Kf6 {[%emt 0:00:30]} Rb6+ {[%emt 0:00:20]} 71. Kxf5 {[%emt 0:00:05]} Ra6 {[%emt 0:00:23]} 72. g6 {[%emt 0:00:43]} Ra5+ {[%emt 0:00:16]} 73. Kf6 {[%emt 0:00:10]} Ra6+ {[%emt 0:00:16]} 74. Kg5 {[%emt 0:00:06]} Ra5+ {[%emt 0:00:15]} 75. Kh6 {[%emt 0:02:08]} Ra8 {[%emt 0:00:14]} 76. Kxh5 {[%emt 0:00:30]} Ra5+ {[%emt 0:00:10]} 77. Kh6 {[%emt 0:00:00]} Ra8 {[%emt 0:00:05]} 78. h5 {[%emt 0:00:00]} Rb8 {[%emt 0:00:10]} 79. Re7 {[%emt 0:00:00]} Ra8 {[%emt 0:00:17]} 80. Kg5 {[%emt 0:00:00]} Rf8 {[%emt 0:00:36]} 81. h6 {[%emt 0:00:49]} Ra8 {[%emt 0:00:05]} 82. Kf6 {[%emt 0:00:38]} Ra6+ {[%emt 0:00:23]} 83. Re6 {[%emt 0:00:06]} Ra8 {[%emt 0:00:02]} 84. g7 {[%emt 0:01:45]} Kh7 {[%emt 0:01:12]} 85. Re7 {[%emt 0:00:33]} Kxh6 {[%emt 0:02:01]} 86. Kf7 {[%emt 0:00:30]} Kh7 {[%emt 0:00:23]} 87. Rb7 {[%emt 0:00:22]} Rg8 {[%emt 0:00:40]} 88. Kf6 {[%emt 0:00:04]} Ra8 {[%emt 0:00:09]} 89. Rb3 {[%emt 0:00:41]} Ra6+ {[%emt 0:00:34]} 90. Kf7 {[%emt 0:00:08]} Ra7+ {[%emt 0:00:03]} 91. Kf8 {[%emt 0:00:04]} Ra8+ {[%emt 0:00:04]} 92. Kf7 {[%emt 0:00:11]} Ra7+ {[%emt 0:00:04]} 93. Kf8 {[%emt 0:00:02]} Ra8+ {[%emt 0:00:04]} 1/2-1/2

[Event "Moscow-ch Women 2021"]
[Site "Moscow"]
[Date "2021.03.27"]
[Round "3.3"]
[White "Antonova, Nadezhda"]
[Black "Diakonova, Ekaterina"]
[Result "0-1"]
[ECO "D45"]
[WhiteElo "1877"]
[BlackElo "2156"]
[Annotator "NA"]
[PlyCount "120"]
[EventDate "2021.03.25"]
[EventType "swiss"]
[EventCountry "RUS"]
[SourceTitle "playchess.com"]
[Source "ChessBase"]
[SourceQuality "1"]
[TimeControl "5400+30"]

1. c4 {[%emt 0:03:25]} c6 {[%emt 0:00:00]} 2. Nf3 {[%emt 0:00:34]} d5 {[%emt 0:00:03]} 3. e3 {[%emt 0:00:09]} Nf6 {[%emt 0:00:35]} 4. Nc3 {[%emt 0:00:27]} e6 {[%emt 0:06:44]} 5. b3 {[%emt 0:01:14]} Bd6 {[%emt 0:01:37]} 6. Bb2 {[%emt 0:00:07]} O-O {[%emt 0:00:05]} 7. Qc2 {[%emt 0:02:28]} Nbd7 {[%emt 0:02:29]} 8. d4 {[%emt 0:01:25]} b6 {[%emt 0:02:13]} 9. Bd3 {[%emt 0:01:02]} Bb7 {[%emt 0:01:02]} 10. O-O {[%emt 0:00:27]} h6 {[%emt 0:07:09]} 11. Rad1 {[%emt 0:02:00]} Qc7 {[%emt 0:01:48]} 12. Rfe1 {[%emt 0:03:03]} Rac8 {[%emt 0:16:20]} 13. h3 {[%emt 0:08:08]} e5 {[%emt 0:03:59]} 14. dxe5 {[%emt 0:13:26]} Nxe5 {[%emt 0:00:07]} 15. Nxe5 {[%emt 0:00:09]} Bxe5 {[%emt 0:00:02]} 16. Bf5 {[%emt 0:00:23]} Rcd8 {[%emt 0:02:18]} 17. cxd5 {[%emt 0:02:25]} cxd5 $11 {[%emt 0:02:36]} 18. Na4 {[%emt 0:07:21]} Qxc2 {[%emt 0:05:23]} 19. Bxc2 {[%emt 0:00:02]} Bxb2 {[%emt 0:00:01]} 20. Nxb2 {[%emt 0:00:02]} Rc8 {[%emt 0:00:01]} 21. Bf5 {[%emt 0:02:59]} Rc5 {[%emt 0:03:20]} 22. Na4 {[%emt 0:18:54]} Ra5 {[%emt 0:04:36]} 23. Rc1 {[%emt 0:01:20]} d4 {[%emt 0:03:52]} 24. Bb1 {[%emt 0:01:51]} dxe3 {[%emt 0:11:50]} 25. Rxe3 {[%emt 0:00:34]} Nd5 {[%emt 0:00:23]} 26. Ree1 {[%emt 0:02:56]} Nf4 {[%emt 0:09:48]} 27. Be4 {[%emt 0:13:34]} Bxe4 {[%emt 0:00:33]} 28. Rxe4 {[%emt 0:00:02]} Ne6 {[%emt 0:00:01]} 29. Re2 {[%emt 0:07:40]} Rd8 {[%emt 0:02:54]} 30. g3 {[%emt 0:00:25]} Rad5 {[%emt 0:10:01]} 31. Kg2 {[%emt 0:00:50]} Rd2 {[%emt 0:01:12]} 32. Rc2 {[%emt 0:03:13]} Rd1 {[%emt 0:00:16]} 33. Nb2 {[%emt 0:00:59]} Ra1 {[%emt 0:00:17]} 34. Nc4 {[%emt 0:01:00]} Rdd1 {[%emt 0:00:28]} 35. h4 {[%emt 0:02:13]} Rg1+ {[%emt 0:01:30]} 36. Kh3 {[%emt 0:00:28]} Rh1+ {[%emt 0:00:02]} 37. Kg4 {[%emt 0:00:16]} f5+ {[%emt 0:00:48]} 38. Kxf5 {[%emt 0:00:53]} Nd4+ {[%emt 0:00:01]} 39. Kg6 {[%emt 0:00:11]} Nxe2 {[%emt 0:00:49]} 40. Ne3 {[%emt 0:00:43]} Nf4+ {[%emt 0:01:01]} 41. gxf4 {[%emt 0:00:02]} Rhg1+ {[%emt 0:00:01]} 42. Kf5 {[%emt 0:00:33]} Kh7 {[%emt 0:01:45]} 43. Ke4 {[%emt 0:00:49]} Rh1 {[%emt 0:00:36]} 44. Nf5 {[%emt 0:00:32]} Rae1+ {[%emt 0:00:19]} 45. Kf3 {[%emt 0:00:31]} Rc1 {[%emt 0:00:36]} 46. Rd2 {[%emt 0:00:16]} Rhd1 {[%emt 0:00:32]} 47. Re2 {[%emt 0:00:09]} Re1 {[%emt 0:00:02]} 48. Rd2 {[%emt 0:00:02]} Red1 {[%emt 0:00:40]} 49. Re2 {[%emt 0:00:01]} Rc3+ {[%emt 0:00:16]} 50. Kg4 {[%emt 0:01:09]} h5+ {[%emt 0:01:12]} 51. Kg5 {[%emt 0:00:08]} Rc5 {[%emt 0:00:14]} 52. Re5 {[%emt 0:00:48]} Rdd5 {[%emt 0:00:34]} 53. Ne3 {[%emt 0:01:35]} Rxe5+ {[%emt 0:00:10]} 54. fxe5 {[%emt 0:00:01]} Rxe5+ {[%emt 0:00:02]} 55. Kf4 {[%emt 0:00:00]} Ra5 {[%emt 0:00:36]} 56. a4 {[%emt 0:00:18]} b5 {[%emt 0:00:32]} 57. axb5 {[%emt 0:01:38]} Rxb5 {[%emt 0:00:02]} 58. Ke4 {[%emt 0:00:20]} Rxb3 {[%emt 0:00:24]} 59. f4 {[%emt 0:00:28]} Rxe3+ {[%emt 0:00:35]} 60. Kxe3 {[%emt 0:00:05]} Kg6 {[%emt 0:00:06]} 0-1

[Event "Moscow-ch Women 2021"]
[Site "Moscow"]
[Date "2021.03.27"]
[Round "3.4"]
[White "Shvedova, Alexandra"]
[Black "Kanevskaya, Anna"]
[Result "1/2-1/2"]
[ECO "C54"]
[WhiteElo "1997"]
[BlackElo "2130"]
[Annotator "NA"]
[PlyCount "118"]
[EventDate "2021.03.25"]
[EventType "swiss"]
[EventCountry "RUS"]
[SourceTitle "playchess.com"]
[Source "ChessBase"]
[SourceQuality "1"]
[TimeControl "5400+30"]

1. e4 {[%emt 0:00:00]} e5 {[%emt 0:36:04]} 2. Nf3 {[%emt 0:00:04]} Nc6 {[%emt 0:00:20]} 3. Bc4 {[%emt 0:00:05]} Bc5 {[%emt 0:00:03]} 4. c3 {[%emt 0:00:11]} Nf6 {[%emt 0:00:15]} 5. d4 {[%emt 0:00:05]} exd4 {[%emt 0:00:04]} 6. e5 {[%emt 0:00:03]} d5 {[%emt 0:00:07]} 7. Bb5 {[%emt 0:00:05]} Ne4 {[%emt 0:00:07]} 8. cxd4 {[%emt 0:00:05]} Bb4+ {[%emt 0:00:12]} 9. Bd2 {[%emt 0:00:21]} Nxd2 {[%emt 0:00:05]} 10. Nbxd2 {[%emt 0:00:04]} O-O {[%emt 0:00:20]} 11. O-O {[%emt 0:00:47]} Ne7 {[%emt 0:01:36]} 12. Bd3 {[%emt 0:02:17]} Nf5 {[%emt 0:18:10]} 13. Qc2 {[%emt 0:04:37]} g6 {[%emt 0:01:34]} 14. Nb3 {[%emt 0:13:09]} Be7 {[%emt 0:04:32]} 15. Rfe1 {[%emt 0:04:40]} a5 {[%emt 0:05:32]} 16. a3 {[%emt 0:10:34]} Ng7 {[%emt 0:03:54]} 17. Rac1 {[%emt 0:12:50]} c6 {[%emt 0:02:00]} 18. Re3 {[%emt 0:04:54]} Ne6 {[%emt 0:04:43]} 19. g3 {[%emt 0:01:35]} a4 {[%emt 0:04:27]} 20. Nc5 {[%emt 0:01:21]} Nxc5 {[%emt 0:01:20]} 21. dxc5 {[%emt 0:00:02]} Ra5 {[%emt 0:00:17]} 22. Ree1 {[%emt 0:08:22]} Bxc5 {[%emt 0:03:31]} 23. Qd2 {[%emt 0:07:33]} Be7 {[%emt 0:03:50]} 24. Qh6 {[%emt 0:04:01]} Bg4 {[%emt 0:02:55]} 25. Qf4 {[%emt 0:00:59]} Be6 {[%emt 0:03:37]} 26. h4 {[%emt 0:02:20]} Kg7 {[%emt 0:01:49]} 27. Nd4 {[%emt 0:04:10]} c5 {[%emt 0:01:20]} 28. Nxe6+ {[%emt 0:00:42]} fxe6 {[%emt 0:00:04]} 29. Qg4 {[%emt 0:00:06]} c4 {[%emt 0:00:31]} 30. Bb1 {[%emt 0:00:54]} Bc5 {[%emt 0:00:43]} 31. Re2 {[%emt 0:01:10]} Ra6 {[%emt 0:00:35]} 32. h5 {[%emt 0:03:42]} g5 {[%emt 0:00:40]} 33. Kg2 {[%emt 0:01:23]} Kh8 {[%emt 0:00:37]} 34. h6 {[%emt 0:00:45]} Rc6 {[%emt 0:00:25]} 35. f4 {[%emt 0:03:10]} Rg8 {[%emt 0:00:24]} 36. Rf1 {[%emt 0:02:55]} Be7 {[%emt 0:00:14]} 37. fxg5 {[%emt 0:01:37]} Rxg5 {[%emt 0:00:28]} 38. Qf4 {[%emt 0:00:53]} Qg8 {[%emt 0:00:58]} 39. Re3 {[%emt 0:01:04]} Rc7 {[%emt 0:00:21]} 40. Ref3 {[%emt 0:01:17]} Qd8 {[%emt 0:00:40]} 41. Qf7 {[%emt 0:00:44]} Bc5 {[%emt 0:00:12]} 42. Qxe6 {[%emt 0:00:40]} Rc6 {[%emt 0:00:43]} 43. Qf7 {[%emt 0:01:26]} Rxh6 {[%emt 0:00:14]} 44. Rh1 {[%emt 0:01:09]} Rxh1 {[%emt 0:00:17]} 45. Kxh1 {[%emt 0:00:01]} Rg7 {[%emt 0:00:13]} 46. Qe6 {[%emt 0:00:29]} Qd7 {[%emt 0:00:23]} 47. Bf5 {[%emt 0:00:46]} Qxe6 {[%emt 0:01:20]} 48. Bxe6 {[%emt 0:00:04]} Re7 {[%emt 0:00:39]} 49. Bxd5 {[%emt 0:00:21]} Rxe5 {[%emt 0:00:04]} 50. Bxc4 {[%emt 0:00:20]} Re1+ {[%emt 0:00:32]} 51. Rf1 {[%emt 0:01:50]} Rxf1+ {[%emt 0:00:52]} 52. Bxf1 {[%emt 0:00:01]} Bd4 {[%emt 0:00:07]} 53. Bb5 {[%emt 0:00:03]} Bxb2 {[%emt 0:00:03]} 54. Bxa4 {[%emt 0:00:03]} Bxa3 {[%emt 0:00:05]} 55. Kg2 {[%emt 0:00:22]} Kg7 {[%emt 0:00:04]} 56. Kh3 {[%emt 0:00:07]} Kg6 {[%emt 0:00:07]} 57. Kg4 {[%emt 0:00:26]} Kf6 {[%emt 0:00:11]} 58. Bb5 {[%emt 0:00:35]} h6 {[%emt 0:00:08]} 59. Ba4 {[%emt 0:00:14]} Ke5 {[%emt 0:00:06]} 1/2-1/2

[Event "Moscow-ch Women 2021"]
[Site "Moscow"]
[Date "2021.03.27"]
[Round "3.5"]
[White "Paramzina, Anastasya"]
[Black "Kuznetsova, Veronika"]
[Result "1-0"]
[ECO "C44"]
[WhiteElo "2252"]
[BlackElo "1343"]
[Annotator "NA"]
[PlyCount "93"]
[EventDate "2021.03.25"]
[EventType "swiss"]
[EventCountry "RUS"]
[SourceTitle "playchess.com"]
[Source "ChessBase"]
[SourceQuality "1"]
[TimeControl "5400+30"]

1. e4 {[%emt 0:02:47]} e5 {[%emt 0:00:00]} 2. Nf3 {[%emt 0:00:04]} Nf6 {[%emt 0:00:00]} 3. d3 {[%emt 0:02:57]} Nc6 {[%emt 0:00:02]} 4. Be2 {[%emt 0:00:38]} Be7 {[%emt 0:00:26]} 5. O-O {[%emt 0:01:18]} O-O {[%emt 0:01:22]} 6. Re1 {[%emt 0:02:39]} d5 {[%emt 0:14:29]} 7. exd5 {[%emt 0:02:41]} Nxd5 {[%emt 0:01:37]} 8. Bf1 {[%emt 0:00:06]} Bd6 {[%emt 0:06:34]} 9. h3 {[%emt 0:01:44]} h6 {[%emt 0:04:05]} 10. Nbd2 {[%emt 0:02:02]} Bf5 {[%emt 0:03:14]} 11. Nc4 {[%emt 0:02:39]} Re8 {[%emt 0:02:20]} 12. Nxd6 {[%emt 0:00:18]} Qxd6 {[%emt 0:00:39]} 13. a4 {[%emt 0:04:06]} Rad8 {[%emt 0:01:12]} 14. Ra3 {[%emt 0:00:39]} Nf6 {[%emt 0:03:18]} 15. Nd2 {[%emt 0:10:26]} Be6 {[%emt 0:03:49]} 16. a5 $15 {[%emt 0:11:23]} Qc5 {[%emt 0:13:49]} 17. c3 {[%emt 0:09:01]} a6 {[%emt 0:02:57]} 18. b4 {[%emt 0:02:48]} Qd6 {[%emt 0:01:29]} 19. Nb3 {[%emt 0:05:40]} Bxb3 {[%emt 0:02:31]} 20. Qxb3 {[%emt 0:03:07]} Qe6 {[%emt 0:07:11]} 21. Qb1 {[%emt 0:00:59]} Qd5 {[%emt 0:03:11]} 22. Be3 {[%emt 0:06:33]} Ra8 {[%emt 0:08:45]} 23. Qa1 {[%emt 0:02:09]} Na7 {[%emt 0:02:21]} 24. c4 {[%emt 0:06:17]} Qd6 {[%emt 0:02:39]} 25. Bc5 {[%emt 0:00:29]} Qe6 {[%emt 0:01:31]} 26. d4 {[%emt 0:00:22]} e4 {[%emt 0:02:54]} 27. d5 {[%emt 0:00:56]} Qd7 {[%emt 0:01:23]} 28. Bd4 {[%emt 0:07:58]} Qd6 {[%emt 0:00:51]} 29. Rae3 {[%emt 0:01:18]} c6 {[%emt 0:04:43]} 30. Bxf6 {[%emt 0:03:40]} Qxf6 {[%emt 0:00:06]} 31. Qxf6 {[%emt 0:00:12]} gxf6 {[%emt 0:00:01]} 32. Rxe4 {[%emt 0:00:07]} Rxe4 {[%emt 0:00:15]} 33. Rxe4 {[%emt 0:00:05]} Kf8 {[%emt 0:02:08]} 34. d6 {[%emt 0:00:31]} c5 {[%emt 0:01:16]} 35. Re7 {[%emt 0:01:22]} Rb8 {[%emt 0:02:32]} 36. bxc5 {[%emt 0:04:59]} Nc6 {[%emt 0:00:08]} 37. Rc7 {[%emt 0:00:04]} Nxa5 {[%emt 0:00:13]} 38. Be2 {[%emt 0:00:08]} Nb3 {[%emt 0:01:13]} 39. Bd1 {[%emt 0:00:37]} Na5 {[%emt 0:00:07]} 40. Bh5 {[%emt 0:00:32]} Nxc4 {[%emt 0:00:25]} 41. Rxf7+ {[%emt 0:00:33]} Kg8 {[%emt 0:00:09]} 42. Rxf6 {[%emt 0:00:29]} Kg7 {[%emt 0:00:19]} 43. Rf7+ {[%emt 0:00:07]} Kg8 {[%emt 0:00:06]} 44. Rc7 {[%emt 0:00:36]} Ne5 {[%emt 0:01:12]} 45. f4 {[%emt 0:00:46]} Nc6 {[%emt 0:00:29]} 46. d7 {[%emt 0:00:24]} Na7 {[%emt 0:01:29]} 47. Rxb7 {[%emt 0:00:13]} 1-0

[Event "Moscow-ch Women 2021"]
[Site "Moscow"]
[Date "2021.03.27"]
[Round "3.6"]
[White "Cherepanova, Evita"]
[Black "Danilova, Rada"]
[Result "1/2-1/2"]
[ECO "B33"]
[WhiteElo "1621"]
[BlackElo "2048"]
[Annotator "NA"]
[PlyCount "132"]
[EventDate "2021.03.25"]
[EventType "swiss"]
[EventCountry "RUS"]
[SourceTitle "playchess.com"]
[Source "ChessBase"]
[SourceQuality "1"]
[TimeControl "5400+30"]

1. e4 {[%emt 0:00:00]} c5 {[%emt 0:00:00]} 2. Nf3 {[%emt 0:00:00]} Nc6 {[%emt 0:00:00]} 3. d4 {[%emt 0:00:00]} cxd4 {[%emt 0:00:00]} 4. Nxd4 {[%emt 0:00:00]} Nf6 {[%emt 0:00:00]} 5. Nc3 {[%emt 0:00:00]} e5 {[%emt 0:00:06]} 6. Ndb5 {[%emt 0:00:00]} d6 {[%emt 0:00:04]} 7. Bg5 {[%emt 0:00:00]} a6 {[%emt 0:00:06]} 8. Na3 {[%emt 0:00:01]} b5 {[%emt 0:00:04]} 9. Nd5 {[%emt 0:00:03]} Be7 {[%emt 0:00:06]} 10. Bxf6 {[%emt 0:00:02]} Bxf6 {[%emt 0:00:06]} 11. c3 {[%emt 0:00:01]} O-O {[%emt 0:00:20]} 12. Nc2 {[%emt 0:00:03]} Bg5 {[%emt 0:00:05]} 13. a4 {[%emt 0:00:56]} bxa4 {[%emt 0:02:20]} 14. Rxa4 {[%emt 0:00:06]} a5 {[%emt 0:00:20]} 15. Bc4 {[%emt 0:00:33]} Rb8 {[%emt 0:00:25]} 16. b3 {[%emt 0:00:03]} Kh8 {[%emt 0:00:25]} 17. O-O {[%emt 0:00:07]} f5 {[%emt 0:00:27]} 18. exf5 {[%emt 0:00:06]} Bxf5 {[%emt 0:00:08]} 19. Nce3 {[%emt 0:00:04]} Bg6 {[%emt 0:00:07]} 20. Qg4 {[%emt 0:00:04]} e4 {[%emt 0:05:34]} 21. h4 {[%emt 0:00:50]} Bh6 {[%emt 0:07:09]} 22. Rd1 {[%emt 0:00:35]} Ne5 {[%emt 0:01:05]} 23. Qg3 {[%emt 0:00:30]} Be8 {[%emt 0:17:31]} 24. Ra3 {[%emt 0:00:30]} a4 {[%emt 0:06:40]} 25. b4 {[%emt 0:12:13]} Bc6 {[%emt 0:04:26]} 26. Rd4 {[%emt 0:08:01]} Qd7 {[%emt 0:15:06]} 27. Be2 {[%emt 0:04:43]} Qa7 {[%emt 0:03:54]} 28. b5 {[%emt 0:07:22]} Bxb5 {[%emt 0:03:09]} 29. Bxb5 {[%emt 0:00:08]} Rxb5 {[%emt 0:00:04]} 30. Rdxa4 {[%emt 0:00:57]} Qf7 {[%emt 0:06:11]} 31. Ra7 {[%emt 0:10:24]} Rb7 {[%emt 0:00:14]} 32. Ra8 {[%emt 0:01:28]} Rbb8 {[%emt 0:06:29]} 33. R8a4 {[%emt 0:06:38]} Nd3 {[%emt 0:02:08]} 34. Ra2 {[%emt 0:07:25]} Nc1 {[%emt 0:03:25]} 35. Rc2 {[%emt 0:04:33]} Rb1 {[%emt 0:00:17]} 36. Qxd6 {[%emt 0:02:14]} Ne2+ {[%emt 0:02:35]} 37. Kh2 {[%emt 0:01:12]} Qxf2 {[%emt 0:00:59]} 38. Qxf8+ {[%emt 0:01:00]} Qxf8 {[%emt 0:00:05]} 39. Rxe2 {[%emt 0:00:18]} Bxe3 {[%emt 0:01:10]} 40. Nxe3 {[%emt 0:01:01]} h6 {[%emt 0:04:43]} 41. Rxe4 {[%emt 0:03:04]} Qd6+ {[%emt 0:00:04]} 42. g3 {[%emt 0:00:52]} Qd3 {[%emt 0:00:29]} 43. Ng2 {[%emt 0:03:58]} Qxc3 {[%emt 0:00:17]} 44. Re8+ {[%emt 0:05:04]} Kh7 {[%emt 0:00:05]} 45. h5 {[%emt 0:03:37]} Qf3 {[%emt 0:01:02]} 46. R8e5 {[%emt 0:00:40]} Rf1 {[%emt 0:02:13]} 47. R2e3 {[%emt 0:02:05]} Qf2 {[%emt 0:00:22]} 48. Re2 {[%emt 0:00:29]} Qg1+ {[%emt 0:02:09]} 49. Kh3 {[%emt 0:00:04]} Rf7 {[%emt 0:02:42]} 50. Re1 {[%emt 0:01:56]} Qf2 {[%emt 0:00:37]} 51. Nf4 {[%emt 0:00:54]} Qf3 {[%emt 0:01:55]} 52. R5e3 {[%emt 0:03:46]} Qc6 {[%emt 0:01:20]} 53. Re5 {[%emt 0:03:20]} Qc8+ {[%emt 0:01:40]} 54. Kh4 {[%emt 0:01:11]} Qc2 {[%emt 0:01:04]} 55. R1e2 {[%emt 0:00:34]} Qc1 {[%emt 0:00:16]} 56. Re1 {[%emt 0:00:04]} Qd2 {[%emt 0:00:25]} 57. R1e2 {[%emt 0:00:09]} Qd1 {[%emt 0:00:48]} 58. Re1 {[%emt 0:01:23]} Qd2 {[%emt 0:00:46]} 59. R1e2 {[%emt 0:00:05]} Rxf4+ {[%emt 0:00:07]} 60. gxf4 {[%emt 0:00:06]} Qxf4+ {[%emt 0:00:03]} 61. Kh3 {[%emt 0:00:03]} Qf1+ {[%emt 0:01:03]} 62. Kh2 {[%emt 0:00:08]} Qf3 {[%emt 0:00:14]} 63. R2e3 {[%emt 0:00:15]} Qf4+ {[%emt 0:00:17]} 64. Kh3 {[%emt 0:00:08]} Qf6 {[%emt 0:00:12]} 65. Re2 {[%emt 0:00:09]} Qc6 {[%emt 0:01:23]} 66. Kh2 {[%emt 0:00:11]} Qf6 {[%emt 0:00:18]} 1/2-1/2

[Event "Moscow-ch Women 2021"]
[Site "Moscow"]
[Date "2021.03.27"]
[Round "3.7"]
[White "Mayorova, Varvara"]
[Black "Ilyina, Lada"]
[Result "0-1"]
[ECO "E61"]
[WhiteElo "1446"]
[BlackElo "1959"]
[Annotator "NA"]
[PlyCount "66"]
[EventDate "2021.03.25"]
[EventType "swiss"]
[EventCountry "RUS"]
[SourceTitle "playchess.com"]
[Source "ChessBase"]
[SourceQuality "1"]
[TimeControl "5400+30"]

1. d4 {[%emt 0:06:33]} Nf6 {[%emt 0:01:05]} 2. Nf3 {[%emt 0:00:06]} g6 {[%emt 0:00:32]} 3. Bf4 {[%emt 0:00:10]} d6 {[%emt 0:00:12]} 4. e3 {[%emt 0:00:15]} b6 {[%emt 0:00:21]} 5. Be2 {[%emt 0:00:16]} Bb7 {[%emt 0:00:05]} 6. O-O {[%emt 0:00:37]} Bg7 {[%emt 0:00:02]} 7. h3 {[%emt 0:00:12]} O-O {[%emt 0:00:06]} 8. c4 {[%emt 0:03:32]} Nbd7 {[%emt 0:00:26]} 9. Nc3 {[%emt 0:00:59]} Re8 {[%emt 0:01:40]} 10. Qc2 {[%emt 0:01:29]} e5 {[%emt 0:02:26]} 11. Bh2 {[%emt 0:00:31]} exd4 {[%emt 0:02:50] 11...Qe7 is not played anymore.} 12. exd4 {[%emt 0:01:46]} Ne4 {[%emt 0:00:27]} 13. Nxe4 {[%emt 0:02:19]} Bxe4 {[%emt 0:00:05]} 14. Qd2 {[%emt 0:00:54] [#]} h6 $146 {[%emt 0:06:42]} ({Predecessor:} 14... Nf8 15. Ng5 Qf6 16. Bf3 Bxf3 17. Nxf3 Ne6 18. Rad1 h5 19. Bg3 Kh7 20. b3 a5 {½-½ (68) Palchun,G (2299)-Levin,E (2529) St Petersburg 2015}) 15. Rfe1 {[%emt 0:02:33]} f5 {[%emt 0:02:08]} 16. Rad1 {[%emt 0:03:56]} Qf6 {[%emt 0:01:56]} 17. b4 {[%emt 0:02:34]} g5 {[%emt 0:22:24]} 18. d5 {[%emt 0:02:15]} f4 {[%emt 0:12:22]} 19. Nd4 $17 {[%emt 0:02:39]} Qxd4 {[%emt 0:01:27]} 20. Qxd4 {[%emt 0:00:06]} Bxd4 {[%emt 0:00:04]} 21. Rxd4 {[%emt 0:00:08]} Bf5 {[%emt 0:03:55]} 22. Kf1 {[%emt 0:02:27]} a5 {[%emt 0:00:08]} 23. b5 {[%emt 0:09:51]} Nf6 {[%emt 0:02:54]} 24. h4 {[%emt 0:02:52]} Re5 {[%emt 0:05:55]} 25. hxg5 {[%emt 0:03:28]} hxg5 {[%emt 0:00:01]} 26. g3 {[%emt 0:00:42]} Bh3+ {[%emt 0:00:28]} 27. Kg1 {[%emt 0:00:39]} f3 {[%emt 0:00:07]} 28. g4 {[%emt 0:03:09]} Rxe2 {[%emt 0:00:07]} 29. Red1 {[%emt 0:01:38]} Rae8 {[%emt 0:00:20]} 30. Bxd6 {[%emt 0:01:36]} cxd6 {[%emt 0:00:09]} 31. c5 {[%emt 0:00:21]} bxc5 {[%emt 0:00:15]} 32. R4d3 {[%emt 0:00:13]} Nxg4 {[%emt 0:00:07]} 33. Rxf3 {[%emt 0:00:40]} Re1+ {[%emt 0:34:44]} 0-1